[Event "*** Titled Tuesday Blitz"]
[Site "Chess.com"]
[Date "2020.12.01"]
[Round "9"]
[White "Omk124"]
[Black "MIJuanReyesRosa"]
[Result "1-0"]
[WhiteElo "2319"]
[BlackElo "2074"]
[TimeControl "180+1"]
[EndTime "11:43:19 PST"]
[Termination "Omk124 won on time"]

1. e4 {[%clk 0:03:00.9]} 1... c6 {[%clk 0:02:57.9]} 2. c4 {[%clk 0:03:00.5]}
2... d5 {[%clk 0:02:54.2]} 3. exd5 {[%clk 0:03:01.4]} 3... cxd5 {[%clk
0:02:53.7]} 4. cxd5 {[%clk 0:03:02.3]} 4... Nf6 {[%clk 0:02:51.2]} 5. Nc3 {[%clk
0:03:02.6]} 5... Nxd5 {[%clk 0:02:49.5]} 6. Nf3 {[%clk 0:03:01.9]} 6... g6
{[%clk 0:02:45.4]} 7. Qb3 {[%clk 0:03:01]} 7... Nb6 {[%clk 0:02:40.8]} 8. a4
{[%clk 0:03:00.9]} 8... Bg7 {[%clk 0:02:21.6]} 9. a5 {[%clk 0:03:00]} 9... Be6
{[%clk 0:02:10.2]} 10. Bb5+ {[%clk 0:02:54.7]} 10... N6d7 {[%clk 0:02:03]} 11.
Qb4 {[%clk 0:02:42.1]} 11... O-O {[%clk 0:01:51.7]} 12. d4 {[%clk 0:02:31.4]}
12... a6 {[%clk 0:01:45.8]} 13. Ba4 {[%clk 0:02:29.2]} 13... Qc7 {[%clk
0:01:31.2]} 14. d5 {[%clk 0:02:27.6]} 14... Bf5 {[%clk 0:01:22.9]} 15. Bf4
{[%clk 0:02:23.1]} 15... Qc5 {[%clk 0:01:04.7]} 16. Qxc5 {[%clk 0:01:44]} 16...
Nxc5 {[%clk 0:01:04.4]} 17. Kd2 {[%clk 0:01:38.6]} 17... Nbd7 {[%clk 0:00:48.8]}
18. Rhe1 {[%clk 0:01:37.6]} 18... Rac8 {[%clk 0:00:33.6]} 19. Rxe7 {[%clk
0:01:34.2]} 19... Nxa4 {[%clk 0:00:17]} 20. Rxa4 {[%clk 0:01:31.4]} 20... Rfd8
{[%clk 0:00:13.1]} 21. Nd4 {[%clk 0:01:28.5]} 21... Nc5 {[%clk 0:00:12]} 22.
Nxf5 {[%clk 0:01:09.6]} 22... Nxa4 {[%clk 0:00:11.3]} 23. Nxg7 {[%clk
0:01:00.8]} 23... Nxc3 {[%clk 0:00:10.8]} 24. bxc3 {[%clk 0:01:01.4]} 24... Kxg7
{[%clk 0:00:10.2]} 25. Be5+ {[%clk 0:00:59.1]} 25... Kf8 {[%clk 0:00:08.9]} 26.
d6 {[%clk 0:00:58.7]} 26... Rc6 {[%clk 0:00:07.1]} 27. Rxb7 {[%clk 0:00:52.6]}
27... Rcxd6+ {[%clk 0:00:06.3]} 28. Bxd6+ {[%clk 0:00:52.4]} 28... Rxd6+ {[%clk
0:00:06.6]} 29. Kc2 {[%clk 0:00:52.2]} 29... Kg7 {[%clk 0:00:07.5]} 30. Rb6
{[%clk 0:00:52.4]} 30... Rd7 {[%clk 0:00:05.3]} 31. Rxa6 {[%clk 0:00:52.2]}
31... h5 {[%clk 0:00:05.1]} 32. Rb6 {[%clk 0:00:51.4]} 32... Ra7 {[%clk
0:00:04.4]} 33. a6 {[%clk 0:00:51.8]} 33... Kh6 {[%clk 0:00:03.2]} 34. c4 {[%clk
0:00:52.2]} 34... f5 {[%clk 0:00:02.2]} 35. c5 {[%clk 0:00:52.4]} 1-0

[Event "*** Titled Tuesday Blitz"]
[Site "Chess.com"]
[Date "2020.12.01"]
[Round "9"]
[White "Roza_Idrisova"]
[Black "CM_rui"]
[Result "1-0"]
[WhiteElo "2207"]
[BlackElo "2365"]
[TimeControl "180+1"]
[EndTime "11:43:23 PST"]
[Termination "Roza_Idrisova won by checkmate"]

1. d4 {[%clk 0:03:00.9]} 1... Nf6 {[%clk 0:02:59.7]} 2. Nf3 {[%clk 0:03:00]}
2... e6 {[%clk 0:02:58.5]} 3. Bg5 {[%clk 0:02:58.8]} 3... Be7 {[%clk 0:02:57.7]}
4. Nbd2 {[%clk 0:02:58.3]} 4... O-O {[%clk 0:02:57.2]} 5. e4 {[%clk 0:02:58.3]}
5... d6 {[%clk 0:02:55.1]} 6. Bd3 {[%clk 0:02:57.6]} 6... Nbd7 {[%clk
0:02:54.8]} 7. Qe2 {[%clk 0:02:57.1]} 7... e5 {[%clk 0:02:53.5]} 8. O-O {[%clk
0:02:53.4]} 8... h6 {[%clk 0:02:46.3]} 9. Bh4 {[%clk 0:02:52.1]} 9... a6 {[%clk
0:02:36.7]} 10. c4 {[%clk 0:02:51.8]} 10... exd4 {[%clk 0:02:36.1]} 11. Nxd4
{[%clk 0:02:50.6]} 11... Nc5 {[%clk 0:02:23.9]} 12. Bc2 {[%clk 0:02:48.6]} 12...
Ne6 {[%clk 0:02:08.4]} 13. Nf5 {[%clk 0:02:46.9]} 13... Nf4 {[%clk 0:02:03.9]}
14. Qf3 {[%clk 0:02:39.6]} 14... Bxf5 {[%clk 0:01:59.2]} 15. Qxf4 {[%clk
0:02:29.1]} 15... Be6 {[%clk 0:01:58.6]} 16. b3 {[%clk 0:02:23.8]} 16... Nh7
{[%clk 0:01:46.2]} 17. Bxe7 {[%clk 0:02:22.6]} 17... Qxe7 {[%clk 0:01:47.1]} 18.
e5 {[%clk 0:02:16.4]} 18... dxe5 {[%clk 0:01:36.2]} 19. Qxe5 {[%clk 0:02:15.6]}
19... Nf6 {[%clk 0:01:33.1]} 20. Rfe1 {[%clk 0:02:13.9]} 20... Rad8 {[%clk
0:01:27]} 21. Nf3 {[%clk 0:02:13.4]} 21... Rfe8 {[%clk 0:01:22.8]} 22. h3 {[%clk
0:01:43]} 22... Qd7 {[%clk 0:01:05.6]} 23. Rad1 {[%clk 0:01:40.5]} 23... Qc6
{[%clk 0:01:01.5]} 24. Rxd8 {[%clk 0:01:33.9]} 24... Rxd8 {[%clk 0:01:02.4]} 25.
Nd4 {[%clk 0:01:33.7]} 25... Qb6 {[%clk 0:00:40.9]} 26. Nxe6 {[%clk 0:01:31]}
26... fxe6 {[%clk 0:00:41.5]} 27. Qxe6+ {[%clk 0:01:30.7]} 27... Qxe6 {[%clk
0:00:41.3]} 28. Rxe6 {[%clk 0:01:30.7]} 28... Rd2 {[%clk 0:00:42]} 29. Bg6
{[%clk 0:01:30.1]} 29... Rxa2 {[%clk 0:00:36.3]} 30. Re7 {[%clk 0:01:29.9]}
30... Ra1+ {[%clk 0:00:32.1]} 31. Kh2 {[%clk 0:01:28.4]} 31... Kf8 {[%clk
0:00:21.1]} 32. Rf7+ {[%clk 0:01:23.7]} 32... Kg8 {[%clk 0:00:21.4]} 33. Rxc7
{[%clk 0:01:23.3]} 33... Kf8 {[%clk 0:00:06.3]} 34. Rf7+ {[%clk 0:01:22.9]}
34... Kg8 {[%clk 0:00:06.2]} 35. Rxb7 {[%clk 0:01:22.8]} 35... Kf8 {[%clk
0:00:06.1]} 36. c5 {[%clk 0:01:17.3]} 36... Rc1 {[%clk 0:00:05.4]} 37. b4 {[%clk
0:01:17]} 37... a5 {[%clk 0:00:05.2]} 38. bxa5 {[%clk 0:01:15.1]} 38... Rxc5
{[%clk 0:00:05.4]} 39. a6 {[%clk 0:01:14.8]} 39... Rc8 {[%clk 0:00:02.6]} 40. a7
{[%clk 0:01:14.3]} 40... Nd5 {[%clk 0:00:02]} 41. Rb8 {[%clk 0:01:12.4]} 41...
Nb6 {[%clk 0:00:02]} 42. Rxc8+ {[%clk 0:01:10.6]} 42... Nxc8 {[%clk 0:00:02.9]}
43. a8=Q {[%clk 0:01:10.8]} 43... Ke7 {[%clk 0:00:03.8]} 44. Qxc8 {[%clk
0:01:10.2]} 44... Kf6 {[%clk 0:00:04.7]} 45. Qc6+ {[%clk 0:01:09.9]} 45... Kg5
{[%clk 0:00:05]} 46. Bd3 {[%clk 0:01:07.5]} 46... Kf4 {[%clk 0:00:04.3]} 47.
Qd6+ {[%clk 0:01:05.9]} 47... Kg5 {[%clk 0:00:04.3]} 48. Kg3 {[%clk 0:01:04.8]}
48... h5 {[%clk 0:00:03.9]} 49. h4# {[%clk 0:01:04.8]} 1-0

[Event "*** Titled Tuesday Blitz"]
[Site "Chess.com"]
[Date "2020.12.01"]
[Round "9"]
[White "c_r_e_e_p_e_r"]
[Black "igorcadilhac"]
[Result "0-1"]
[WhiteElo "2295"]
[BlackElo "2445"]
[TimeControl "180+1"]
[EndTime "11:43:25 PST"]
[Termination "igorcadilhac won on time"]

1. e4 {[%clk 0:03:00.9]} 1... e5 {[%clk 0:02:59.8]} 2. Nc3 {[%clk 0:03:01]} 2...
Nc6 {[%clk 0:03:00.3]} 3. f4 {[%clk 0:03:01]} 3... exf4 {[%clk 0:02:58]} 4. Nf3
{[%clk 0:02:59.8]} 4... g5 {[%clk 0:02:57.5]} 5. h3 {[%clk 0:02:18]} 5... d6
{[%clk 0:02:57.2]} 6. d4 {[%clk 0:02:15.3]} 6... Be7 {[%clk 0:02:50.9]} 7. d5
{[%clk 0:01:49.9]} 7... Ne5 {[%clk 0:02:50.5]} 8. Nxe5 {[%clk 0:01:46.7]} 8...
dxe5 {[%clk 0:02:51.4]} 9. Qh5 {[%clk 0:01:36.3]} 9... h6 {[%clk 0:02:33.5]} 10.
d6 {[%clk 0:01:20.1]} 10... Bxd6 {[%clk 0:02:07.9]} 11. Bc4 {[%clk 0:01:18.5]}
11... Qf6 {[%clk 0:02:06.3]} 12. Nd5 {[%clk 0:01:17]} 12... Qg6 {[%clk
0:02:05.1]} 13. Qe2 {[%clk 0:01:03]} 13... Ne7 {[%clk 0:01:58.6]} 14. Bd2 {[%clk
0:01:02]} 14... Nxd5 {[%clk 0:01:24.5]} 15. exd5 {[%clk 0:00:56.9]} 15... Bd7
{[%clk 0:01:09.8]} 16. Bc3 {[%clk 0:00:56.6]} 16... O-O-O {[%clk 0:01:08.4]} 17.
O-O-O {[%clk 0:00:52.8]} 17... Rhe8 {[%clk 0:01:06.6]} 18. Qf2 {[%clk 0:00:52]}
18... Kb8 {[%clk 0:01:05.8]} 19. Rhe1 {[%clk 0:00:48.8]} 19... e4 {[%clk
0:01:05]} 20. Qd4 {[%clk 0:00:34]} 20... Be5 {[%clk 0:00:57.5]} 21. Qxe4 {[%clk
0:00:33.6]} 21... Bf5 {[%clk 0:00:55.3]} 22. Qf3 {[%clk 0:00:29.1]} 22... g4
{[%clk 0:00:32.7]} 23. hxg4 {[%clk 0:00:20.3]} 23... Bxg4 {[%clk 0:00:32.5]} 24.
Qd3 {[%clk 0:00:19.7]} 24... Bxc3 {[%clk 0:00:29.1]} 25. Qxc3 {[%clk 0:00:08.7]}
25... Bxd1 {[%clk 0:00:27.6]} 26. Rxd1 {[%clk 0:00:08.5]} 26... Qxg2 {[%clk
0:00:25.7]} 27. Bb5 {[%clk 0:00:06]} 27... Re3 {[%clk 0:00:18.7]} 28. Qf6 {[%clk
0:00:01.6]} 28... Qg5 {[%clk 0:00:19.2]} 0-1

[Event "*** Titled Tuesday Blitz"]
[Site "Chess.com"]
[Date "2020.12.01"]
[Round "9"]
[White "Beltraxtor"]
[Black "dretch"]
[Result "0-1"]
[WhiteElo "2569"]
[BlackElo "2815"]
[TimeControl "180+1"]
[EndTime "11:43:27 PST"]
[Termination "dretch won by resignation"]

1. e4 {[%clk 0:03:00.9]} 1... e6 {[%clk 0:02:59.6]} 2. d4 {[%clk 0:02:59.4]}
2... d5 {[%clk 0:03:00]} 3. Nc3 {[%clk 0:03:00.1]} 3... Nf6 {[%clk 0:03:00]} 4.
Bg5 {[%clk 0:02:59.2]} 4... dxe4 {[%clk 0:02:59.8]} 5. Nxe4 {[%clk 0:02:59.2]}
5... Be7 {[%clk 0:03:00.3]} 6. Bxf6 {[%clk 0:02:58.3]} 6... Bxf6 {[%clk
0:03:01.2]} 7. Nf3 {[%clk 0:02:57]} 7... Nd7 {[%clk 0:03:01.8]} 8. Bd3 {[%clk
0:02:47.3]} 8... c5 {[%clk 0:03:00.8]} 9. c3 {[%clk 0:02:33.9]} 9... cxd4 {[%clk
0:02:59.3]} 10. Nxf6+ {[%clk 0:02:34]} 10... Nxf6 {[%clk 0:02:58.9]} 11. Nxd4
{[%clk 0:02:34.5]} 11... O-O {[%clk 0:02:58.4]} 12. O-O {[%clk 0:02:34.2]} 12...
e5 {[%clk 0:02:58.4]} 13. Nc2 {[%clk 0:02:29.6]} 13... Bg4 {[%clk 0:02:55.6]}
14. Be2 {[%clk 0:02:27.7]} 14... Qxd1 {[%clk 0:02:52.3]} 15. Bxd1 {[%clk
0:02:28.6]} 15... Rad8 {[%clk 0:02:50.3]} 16. Ne3 {[%clk 0:02:27.7]} 16... Be6
{[%clk 0:02:49.6]} 17. Bf3 {[%clk 0:02:26.3]} 17... e4 {[%clk 0:02:46.9]} 18.
Be2 {[%clk 0:02:26.7]} 18... Rd2 {[%clk 0:02:46.8]} 19. Bc4 {[%clk 0:02:24.1]}
19... Rxb2 {[%clk 0:02:45.3]} 20. Bxe6 {[%clk 0:02:23.6]} 20... fxe6 {[%clk
0:02:45.3]} 21. Rfb1 {[%clk 0:02:23.8]} 21... Rxb1+ {[%clk 0:02:44.2]} 22. Rxb1
{[%clk 0:02:24.7]} 22... b6 {[%clk 0:02:44.4]} 23. c4 {[%clk 0:02:22.5]} 23...
Rd8 {[%clk 0:02:44.1]} 24. Rd1 {[%clk 0:02:15.3]} 24... Rd3 {[%clk 0:02:39.4]}
25. Rxd3 {[%clk 0:02:09.5]} 25... exd3 {[%clk 0:02:39.5]} 26. f3 {[%clk
0:02:10.3]} 26... Kf7 {[%clk 0:02:37.1]} 27. Kf2 {[%clk 0:02:10.3]} 27... Nd7
{[%clk 0:02:21.9]} 28. Nd1 {[%clk 0:02:01.9]} 28... Ne5 {[%clk 0:02:00.8]} 29.
Nb2 {[%clk 0:01:57]} 29... Kf6 {[%clk 0:02:00.2]} 30. Ke3 {[%clk 0:01:51.3]}
30... Kf5 {[%clk 0:01:59.3]} 31. g4+ {[%clk 0:01:08.7]} 31... Kf6 {[%clk
0:01:53.3]} 32. h3 {[%clk 0:01:04.8]} 32... g5 {[%clk 0:01:51]} 33. f4 {[%clk
0:00:56.9]} 33... gxf4+ {[%clk 0:01:42.1]} 34. Kxf4 {[%clk 0:00:57.8]} 34... h6
{[%clk 0:01:37.7]} 35. Ke3 {[%clk 0:00:53.8]} 35... Kg5 {[%clk 0:01:33.5]} 36.
Ke4 {[%clk 0:00:53.7]} 36... Kf6 {[%clk 0:01:33.1]} 37. Ke3 {[%clk 0:00:53.6]}
37... Kg5 {[%clk 0:01:12.9]} 38. Kd4 {[%clk 0:00:49.7]} 38... Kf4 {[%clk
0:01:08.2]} 39. a4 {[%clk 0:00:27.8]} 39... d2 {[%clk 0:01:04.8]} 40. Nd1 {[%clk
0:00:20.9]} 40... a5 {[%clk 0:00:59.4]} 41. Nb2 {[%clk 0:00:16.1]} 41... Nf3+
{[%clk 0:00:57.7]} 42. Kd3 {[%clk 0:00:15]} 42... e5 {[%clk 0:00:58.6]} 43. Ke2
{[%clk 0:00:14.8]} 43... e4 {[%clk 0:00:59]} 44. Nd1 {[%clk 0:00:14.8]} 44...
Ke5 {[%clk 0:00:57.5]} 45. Ne3 {[%clk 0:00:10.6]} 45... Kd4 {[%clk 0:00:57.2]}
46. Nf5+ {[%clk 0:00:10.8]} 46... Kc3 {[%clk 0:00:55.2]} 47. Kd1 {[%clk
0:00:10.1]} 47... Kd3 {[%clk 0:00:53.9]} 0-1

[Event "*** Titled Tuesday Blitz"]
[Site "Chess.com"]
[Date "2020.12.01"]
[Round "9"]
[White "daro94"]
[Black "Shota_Azaladze"]
[Result "0-1"]
[WhiteElo "2847"]
[BlackElo "2671"]
[TimeControl "180+1"]
[EndTime "11:43:30 PST"]
[Termination "Shota_Azaladze won on time"]

1. e4 {[%clk 0:03:00.9]} 1... g6 {[%clk 0:02:59.4]} 2. d4 {[%clk 0:02:58.1]}
2... Bg7 {[%clk 0:02:59.6]} 3. Nf3 {[%clk 0:02:58.5]} 3... d6 {[%clk 0:02:59.2]}
4. Bc4 {[%clk 0:02:58.8]} 4... e6 {[%clk 0:02:59.1]} 5. O-O {[%clk 0:02:58.6]}
5... Ne7 {[%clk 0:02:59]} 6. Re1 {[%clk 0:02:57.1]} 6... h6 {[%clk 0:02:57.9]}
7. c3 {[%clk 0:02:57.4]} 7... Nd7 {[%clk 0:02:56.8]} 8. Nbd2 {[%clk 0:02:57.8]}
8... b6 {[%clk 0:02:56]} 9. a4 {[%clk 0:02:57.3]} 9... a6 {[%clk 0:02:55.3]} 10.
Nf1 {[%clk 0:02:57.1]} 10... Bb7 {[%clk 0:02:55.9]} 11. Ng3 {[%clk 0:02:57.6]}
11... O-O {[%clk 0:02:46.5]} 12. h3 {[%clk 0:02:57.1]} 12... e5 {[%clk
0:02:44.2]} 13. Be3 {[%clk 0:02:51]} 13... exd4 {[%clk 0:02:38.1]} 14. cxd4
{[%clk 0:02:51]} 14... d5 {[%clk 0:02:36.9]} 15. exd5 {[%clk 0:02:42.2]} 15...
Nxd5 {[%clk 0:02:36.5]} 16. Qb3 {[%clk 0:02:40.3]} 16... Nxe3 {[%clk 0:02:30.3]}
17. Rxe3 {[%clk 0:02:40.2]} 17... c5 {[%clk 0:02:16.9]} 18. Rae1 {[%clk
0:02:09.9]} 18... cxd4 {[%clk 0:01:59]} 19. Bxf7+ {[%clk 0:02:02.6]} 19... Kh8
{[%clk 0:01:44.5]} 20. Re7 {[%clk 0:01:38.8]} 20... Nc5 {[%clk 0:01:41.7]} 21.
Qd1 {[%clk 0:01:24.7]} 21... d3 {[%clk 0:01:41]} 22. Nh4 {[%clk 0:01:21.4]}
22... Rxf7 {[%clk 0:01:22.5]} 23. Nxg6+ {[%clk 0:01:06.6]} 23... Kg8 {[%clk
0:01:20.8]} 24. Rxf7 {[%clk 0:00:24.9]} 24... Kxf7 {[%clk 0:01:21.7]} 25. Qh5
{[%clk 0:00:16]} 25... Qd5 {[%clk 0:01:18.8]} 26. Re7+ {[%clk 0:00:06.2]} 26...
Kg8 {[%clk 0:01:17.5]} 27. Rxg7+ {[%clk 0:00:04]} 27... Kxg7 {[%clk 0:01:14.6]}
28. Nf5+ {[%clk 0:00:04.9]} 28... Kf6 {[%clk 0:01:09.1]} 29. Qh4+ {[%clk
0:00:05.3]} 29... Kxf5 {[%clk 0:00:48.9]} 30. Ne7+ {[%clk 0:00:05.5]} 30... Ke6
{[%clk 0:00:48.4]} 31. Nxd5 {[%clk 0:00:05.8]} 31... Bxd5 {[%clk 0:00:48.7]} 32.
b4 {[%clk 0:00:05.1]} 32... Ne4 {[%clk 0:00:47.6]} 33. Qg4+ {[%clk 0:00:03.1]}
33... Ke5 {[%clk 0:00:46.1]} 34. Qg7+ {[%clk 0:00:02.9]} 34... Kd6 {[%clk
0:00:40.5]} 35. Qxh6+ {[%clk 0:00:02.8]} 35... Ke5 {[%clk 0:00:35.6]} 36. Qg7+
{[%clk 0:00:03]} 36... Nf6 {[%clk 0:00:35]} 37. f4+ {[%clk 0:00:01.8]} 37... Ke6
{[%clk 0:00:33.4]} 0-1

[Event "*** Titled Tuesday Blitz"]
[Site "Chess.com"]
[Date "2020.12.01"]
[Round "9"]
[White "Meri-Arabidze"]
[Black "The_Machine04"]
[Result "1-0"]
[WhiteElo "2623"]
[BlackElo "2432"]
[TimeControl "180+1"]
[EndTime "11:43:30 PST"]
[Termination "Meri-Arabidze won by resignation"]

1. Nf3 {[%clk 0:03:00.9]} 1... d6 {[%clk 0:02:59.1]} 2. b3 {[%clk 0:03:01]} 2...
Nf6 {[%clk 0:02:58]} 3. Bb2 {[%clk 0:03:00.8]} 3... Nbd7 {[%clk 0:02:55.1]} 4.
g3 {[%clk 0:03:00.4]} 4... g6 {[%clk 0:02:54.3]} 5. Bg2 {[%clk 0:03:00.6]} 5...
Bg7 {[%clk 0:02:54.4]} 6. O-O {[%clk 0:03:01.3]} 6... O-O {[%clk 0:02:54.2]} 7.
c4 {[%clk 0:03:01.9]} 7... e5 {[%clk 0:02:50.7]} 8. Nc3 {[%clk 0:03:02]} 8... c6
{[%clk 0:02:49.5]} 9. d3 {[%clk 0:03:00.3]} 9... a5 {[%clk 0:02:46.5]} 10. Qc2
{[%clk 0:02:58.3]} 10... Nc5 {[%clk 0:02:34.1]} 11. a3 {[%clk 0:02:58.3]} 11...
Ne6 {[%clk 0:02:32.8]} 12. Ne4 {[%clk 0:02:54.1]} 12... Nxe4 {[%clk 0:02:32]}
13. dxe4 {[%clk 0:02:55]} 13... Qe7 {[%clk 0:02:27.6]} 14. Rfd1 {[%clk
0:02:52.8]} 14... Rd8 {[%clk 0:02:26.1]} 15. Bc3 {[%clk 0:02:51.1]} 15... h6
{[%clk 0:02:19.2]} 16. e3 {[%clk 0:02:51]} 16... b6 {[%clk 0:02:11.9]} 17. Rd2
{[%clk 0:02:47.3]} 17... Ra7 {[%clk 0:01:42.4]} 18. Rad1 {[%clk 0:02:46.6]}
18... Rad7 {[%clk 0:01:41.4]} 19. b4 {[%clk 0:02:46.8]} 19... axb4 {[%clk
0:01:40.6]} 20. axb4 {[%clk 0:02:47.7]} 20... Bb7 {[%clk 0:01:37.8]} 21. Nh4
{[%clk 0:02:41.5]} 21... Bf6 {[%clk 0:01:33.7]} 22. Nf3 {[%clk 0:02:39]} 22...
Ng5 {[%clk 0:01:29]} 23. Ne1 {[%clk 0:02:35.5]} 23... Qe6 {[%clk 0:01:24]} 24.
h4 {[%clk 0:02:28.4]} 24... Nh7 {[%clk 0:01:23.3]} 25. Bb2 {[%clk 0:02:19.4]}
25... g5 {[%clk 0:01:16.3]} 26. hxg5 {[%clk 0:02:12.1]} 26... Nxg5 {[%clk
0:01:10.5]} 27. Kh2 {[%clk 0:01:54.1]} 27... Kg7 {[%clk 0:01:00.2]} 28. f4
{[%clk 0:01:50.7]} 28... exf4 {[%clk 0:00:52.3]} 29. exf4 {[%clk 0:01:50.5]}
29... Nxe4 {[%clk 0:00:41.1]} 30. Bxe4 {[%clk 0:01:48.6]} 30... Bxb2 {[%clk
0:00:30.5]} 31. Qxb2+ {[%clk 0:01:48.5]} 31... Qf6 {[%clk 0:00:30.3]} 32. Qxf6+
{[%clk 0:01:45.4]} 32... Kxf6 {[%clk 0:00:31.2]} 33. Bg2 {[%clk 0:01:42.5]}
33... d5 {[%clk 0:00:30.4]} 34. cxd5 {[%clk 0:01:39.3]} 34... cxd5 {[%clk
0:00:31.3]} 35. Rd4 {[%clk 0:01:39]} 35... Ke6 {[%clk 0:00:27.9]} 36. Bh3+
{[%clk 0:01:38.4]} 36... f5 {[%clk 0:00:27.5]} 37. Ng2 {[%clk 0:01:38.3]} 37...
Rf7 {[%clk 0:00:20.7]} 38. Ne3 {[%clk 0:01:37.5]} 38... Rc8 {[%clk 0:00:20.5]}
39. Bg2 {[%clk 0:01:35.4]} 39... Rd7 {[%clk 0:00:17.5]} 40. Bxd5+ {[%clk
0:01:34]} 40... Bxd5 {[%clk 0:00:17.8]} 41. Nxd5 {[%clk 0:01:31.4]} 41... Rc2+
{[%clk 0:00:11.8]} 42. Kh3 {[%clk 0:01:30.4]} 42... Ra7 {[%clk 0:00:07.4]} 43.
Ne3 {[%clk 0:01:29.4]} 43... Re2 {[%clk 0:00:06.6]} 44. Rd6+ {[%clk 0:01:28.2]}
44... Ke7 {[%clk 0:00:06.1]} 45. Nxf5+ {[%clk 0:01:28.3]} 45... Kf7 {[%clk
0:00:06.4]} 46. Nxh6+ {[%clk 0:01:28.5]} 46... Ke7 {[%clk 0:00:06.2]} 47. Nf5+
{[%clk 0:01:28.5]} 47... Kf7 {[%clk 0:00:06.7]} 48. Rd7+ {[%clk 0:01:27.1]}
48... Rxd7 {[%clk 0:00:06.2]} 49. Rxd7+ {[%clk 0:01:28]} 49... Ke6 {[%clk
0:00:07.1]} 50. Re7+ {[%clk 0:01:28.2]} 50... Kxf5 {[%clk 0:00:06.7]} 51. Rxe2
{[%clk 0:01:29.1]} 51... b5 {[%clk 0:00:05.8]} 52. Re5+ {[%clk 0:01:28.4]} 52...
Kf6 {[%clk 0:00:05.9]} 53. Rxb5 {[%clk 0:01:29.3]} 53... Ke6 {[%clk 0:00:06.6]}
54. Rc5 {[%clk 0:01:29.1]} 54... Kd6 {[%clk 0:00:06.8]} 55. g4 {[%clk
0:01:29.6]} 1-0

[Event "*** Titled Tuesday Blitz"]
[Site "Chess.com"]
[Date "2020.12.01"]
[Round "9"]
[White "onetowin"]
[Black "beto-betun"]
[Result "0-1"]
[WhiteElo "2012"]
[BlackElo "2200"]
[TimeControl "180+1"]
[EndTime "11:43:33 PST"]
[Termination "beto-betun won by resignation"]

1. d4 {[%clk 0:03:00.9]} 1... Nf6 {[%clk 0:02:56.4]} 2. Nf3 {[%clk 0:03:00]}
2... g6 {[%clk 0:02:55]} 3. g3 {[%clk 0:03:00]} 3... Bg7 {[%clk 0:02:54.8]} 4.
Bg2 {[%clk 0:03:00.2]} 4... O-O {[%clk 0:02:54.4]} 5. O-O {[%clk 0:02:59]} 5...
d6 {[%clk 0:02:53.6]} 6. c4 {[%clk 0:02:57.7]} 6... c6 {[%clk 0:02:53.5]} 7. Nc3
{[%clk 0:02:56.9]} 7... Nbd7 {[%clk 0:02:43.3]} 8. e4 {[%clk 0:02:55.3]} 8... e5
{[%clk 0:02:42.1]} 9. h3 {[%clk 0:02:54.6]} 9... Re8 {[%clk 0:02:38.4]} 10. Be3
{[%clk 0:02:51.6]} 10... b6 {[%clk 0:02:35.6]} 11. b4 {[%clk 0:02:35.5]} 11...
Bb7 {[%clk 0:02:30.8]} 12. c5 {[%clk 0:02:24.4]} 12... exd4 {[%clk 0:02:19.6]}
13. Nxd4 {[%clk 0:02:00.5]} 13... dxc5 {[%clk 0:02:17.8]} 14. bxc5 {[%clk
0:01:58.6]} 14... Nxc5 {[%clk 0:02:17.1]} 15. e5 {[%clk 0:01:46.8]} 15... Nd5
{[%clk 0:02:10]} 16. Nxd5 {[%clk 0:01:37]} 16... cxd5 {[%clk 0:02:10.9]} 17. f4
{[%clk 0:01:36.3]} 17... Qe7 {[%clk 0:02:05.8]} 18. Nb5 {[%clk 0:01:29.3]} 18...
Rad8 {[%clk 0:02:04.1]} 19. Bf2 {[%clk 0:01:12.5]} 19... Bc6 {[%clk 0:02:01.9]}
20. Nd4 {[%clk 0:01:10.9]} 20... Ba4 {[%clk 0:01:58.3]} 21. Qe2 {[%clk
0:01:02.9]} 21... f6 {[%clk 0:01:48.8]} 22. e6 {[%clk 0:00:46.5]} 22... Nxe6
{[%clk 0:01:43.7]} 23. Rfe1 {[%clk 0:00:45.8]} 23... Kf7 {[%clk 0:01:39.6]} 24.
f5 {[%clk 0:00:44]} 24... Nxd4 {[%clk 0:01:29.3]} 25. Qxe7+ {[%clk 0:00:43.7]}
25... Rxe7 {[%clk 0:01:29.2]} 26. Rxe7+ {[%clk 0:00:44]} 26... Kxe7 {[%clk
0:01:29.3]} 27. Bxd4 {[%clk 0:00:44.4]} 27... gxf5 {[%clk 0:01:25.1]} 28. Rc1
{[%clk 0:00:33.4]} 28... Kd6 {[%clk 0:01:22.9]} 29. Be3 {[%clk 0:00:30.6]} 29...
Rd7 {[%clk 0:01:19.4]} 30. Rc8 {[%clk 0:00:26.5]} 30... Bb5 {[%clk 0:01:16.4]}
31. Bf4+ {[%clk 0:00:26]} 31... Ke7 {[%clk 0:01:14.6]} 32. Bd2 {[%clk
0:00:20.1]} 32... Ba6 {[%clk 0:01:11.5]} 33. Bb4+ {[%clk 0:00:18.8]} 33... Kf7
{[%clk 0:01:09.1]} 34. Rc1 {[%clk 0:00:14.7]} 34... Bc4 {[%clk 0:01:08.7]} 35.
a3 {[%clk 0:00:13.5]} 35... Bh6 {[%clk 0:01:06.7]} 36. Rd1 {[%clk 0:00:11.9]}
36... Be3+ {[%clk 0:01:06.6]} 37. Kh2 {[%clk 0:00:10.9]} 37... d4 {[%clk
0:01:05.2]} 38. Bc6 {[%clk 0:00:09.7]} 38... Rc7 {[%clk 0:01:05.1]} 39. Ba4
{[%clk 0:00:08.8]} 39... f4 {[%clk 0:01:01.3]} 40. gxf4 {[%clk 0:00:06.4]} 40...
Bxf4+ {[%clk 0:01:02.2]} 41. Kg2 {[%clk 0:00:05.6]} 41... Be3 {[%clk 0:01:02.2]}
42. Kf3 {[%clk 0:00:05.5]} 42... Bd5+ {[%clk 0:01:01]} 43. Kg4 {[%clk
0:00:05.7]} 43... Ke6 {[%clk 0:00:59]} 44. Re1 {[%clk 0:00:04.1]} 44... f5+
{[%clk 0:00:57.7]} 45. Kg3 {[%clk 0:00:03.2]} 45... Rg7+ {[%clk 0:00:54.6]} 46.
Kh4 {[%clk 0:00:01.9]} 0-1